bitfinex/quotes_BTCUSD_20240715
["timestamp","ask_amount","ask_price","bid_price","bid_amount"]
[1721060961748,0.003,63336.0,63335.0,0.40824334]
[1721060964496,0.003,63336.0,63335.0,0.144]
[1721060964898,0.003,63336.0,63335.0,0.33906353]
[1721060965057,0.0002138,63337.0,63336.0,0.307]
[1721060965257,0.98684497,63343.0,63342.0,0.45]
[1721060965488,0.98684497,63343.0,63342.0,0.6866]
[1721060965911,0.98684497,63343.0,63342.0,0.7466]
[1721060966302,0.98684497,63343.0,63342.0,0.84871791]
[1721060966303,0.83694497,63343.0,63342.0,0.84871791]
[1721060966505,0.83694497,63343.0,63342.0,0.7466]
[1721060967384,0.83694497,63343.0,63342.0,0.7606]
[1721060967507,0.83694497,63343.0,63342.0,0.7466]
[1721060967910,0.83694497,63343.0,63342.0,0.7606]
[1721060968520,0.83694497,63343.0,63342.0,0.7466]
[1721060968993,0.83694497,63343.0,63342.0,0.76366353]
[1721060969430,0.83694497,63343.0,63342.0,0.7606]
[1721060969633,0.83694497,63343.0,63342.0,0.77766353]
[1721060969867,0.83694497,63343.0,63342.0,1.13978144]
[1721060970017,0.83694497,63343.0,63342.0,1.13671791]
[1721060971268,0.83694497,63343.0,63342.0,0.93671791]
[1721060971892,0.83694497,63343.0,63342.0,0.93978144]
[1721060972332,0.83694497,63343.0,63342.0,0.93671791]
[1721060972892,0.83694497,63343.0,63342.0,0.93978144]
[1721060973299,0.83694497,63343.0,63342.0,0.93671791]
[1721060973722,0.83694497,63343.0,63342.0,0.93978144]
[1721060973921,0.83694497,63343.0,63342.0,0.93988144]
[1721060974500,0.83694497,63343.0,63342.0,0.93681791]
[1721060976919,0.83694497,63343.0,63342.0,0.93988144]
[1721060977139,0.83694497,63343.0,63342.0,1.33988144]
[1721060977367,0.68704497,63343.0,63342.0,1.43681791]
[1721060978940,0.0128512,63358.0,63348.0,0.852]
[1721060979145,0.005356,63364.0,63363.0,0.652]
[1721060979355,0.00012809,63371.0,63370.0,0.652]
[1721060979559,0.00012809,63371.0,63370.0,1.07836125]
[1721060979750,0.00012809,63371.0,63370.0,1.17046125]
[1721060980229,0.00012809,63371.0,63370.0,0.85624334]
[1721060980665,0.00012809,63371.0,63370.0,0.70924334]
[1721060981049,0.00012809,63371.0,63370.0,0.72324334]
[1721060981678,0.00012809,63371.0,63370.0,0.73724334]
[1721060982085,0.00012809,63371.0,63370.0,0.95936125]
[1721060982285,0.00012809,63371.0,63370.0,0.93136125]
[1721060982437,0.00012809,63371.0,63370.0,1.03446125]
[1721060982805,0.00012809,63371.0,63370.0,1.02046125]
[1721060983007,0.00012809,63371.0,63370.0,1.08376125]
[1721060983205,0.98684497,63376.0,63375.0,0.307]
[1721060983429,0.98684497,63376.0,63375.0,0.66571791]
[1721060985425,0.98684497,63376.0,63375.0,0.5036]
[1721060985641,0.98684497,63376.0,63375.0,0.5866]
[1721060985846,0.98684497,63376.0,63375.0,0.459]
[1721060986266,0.98684497,63376.0,63375.0,0.363]
[1721060986478,0.98684497,63376.0,63375.0,0.473]
[1721060986689,1.05414497,63376.0,63375.0,0.171]
[1721060986901,1.05414497,63376.0,63375.0,0.014]
[1721060987117,1.05414497,63376.0,63370.0,0.26424334]
[1721060987118,0.005,63371.0,63370.0,0.26424334]
[1721060987329,0.005,63370.0,63363.0,0.34529572]
[1721060987563,0.005,63368.0,63366.0,0.143]
[1721060987980,0.005,63368.0,63364.0,0.00306353]
[1721060988502,0.2298,63372.0,63363.0,0.26424334]
[1721060988503,0.005,63370.0,63365.0,0.08105238]
[1721060988708,1.60111197,63376.0,63365.0,0.08105238]
[1721060988709,0.005,63373.0,63366.0,0.143]
[1721060988917,0.005,63374.0,63372.0,0.08105238]
[1721060989122,1.12674497,63376.0,63372.0,0.08105238]
[1721060989123,1.13174497,63376.0,63372.0,0.08105238]
[1721060989329,1.13174497,63376.0,63366.0,0.149]
[1721060989330,0.005,63374.0,63366.0,0.149]
[1721060989541,0.005,63372.0,63366.0,0.149]
[1721060989959,0.005,63368.0,63366.0,0.006]
[1721060990163,0.005,63367.0,63366.0,0.006]
[1721060990331,0.005,63368.0,63364.0,0.08411591]
[1721060990670,0.005,63368.0,63365.0,0.003]
[1721060990870,0.005,63366.0,63365.0,0.003]
[1721060991199,0.005,63366.0,63364.0,0.08105238]
[1721060991200,0.0653,63366.0,63364.0,0.08105238]
[1721060991742,0.0603,63366.0,63364.0,0.08105238]
[1721060991944,0.0603,63366.0,63364.0,0.08411591]
[1721060992155,0.2298,63371.0,63366.0,0.335]
[1721060992519,1.38002597,63376.0,63366.0,0.335]
[1721060992520,1.06444497,63376.0,63366.0,0.335]
[1721060992730,1.06444497,63376.0,63375.0,0.08105238]
[1721060992882,1.06944497,63376.0,63375.0,0.08105238]
[1721060993083,1.06444497,63376.0,63375.0,0.08115238]
[1721060993298,0.98684497,63376.0,63375.0,0.08115238]
[1721060993489,0.99184497,63376.0,63375.0,0.08115238]
[1721060993692,0.99184497,63376.0,63375.0,0.0001]
[1721060993894,1.66991647,63376.0,63375.0,0.0001]
[1721060994253,1.75021647,63376.0,63375.0,0.0001]
[1721060994457,2.13659247,63376.0,63375.0,0.0001]
[1721060994864,2.15159247,63376.0,63375.0,0.0001]
[1721060995584,2.15259247,63376.0,63375.0,0.0001]
[1721060995942,2.15159247,63376.0,63375.0,0.0001]
[1721060996931,2.25159247,63376.0,63375.0,0.0001]
[1721060997134,2.57516847,63376.0,63375.0,0.0001]
[1721060997335,0.794077,63365.0,63364.0,0.00306353]
[1721060997536,0.005,63364.0,63363.0,0.00306353]
[1721060997737,0.6166615,63364.0,63363.0,0.00306353]
[1721060998055,1.2217975,63364.0,63363.0,0.00306353]
[1721060998259,0.005,63358.0,63356.0,0.48829572]
[1721060998419,0.0382075,63357.0,63356.0,0.48829572]
[1721060998973,0.0432075,63357.0,63356.0,0.48829572]
[1721060999583,0.0431075,63357.0,63356.0,0.48829572]
[1721060999798,0.0431075,63357.0,63356.0,0.49329572]
[1721061000027,0.0430075,63357.0,63356.0,0.49329572]
[1721061000221,0.005,63358.0,63356.0,0.49329572]
[1721061000429,0.005,63357.0,63356.0,0.49329572]
[1721061000626,1.362177,63357.0,63356.0,0.005]
[1721061000836,1.362177,63357.0,63356.0,0.007]
[1721061000837,1.777848,63357.0,63356.0,0.007]
[1721061001037,1.877848,63357.0,63356.0,0.007]
[1721061001437,1.877848,63357.0,63356.0,0.005]
[1721061001632,1.877848,63357.0,63343.0,0.4863143]
[1721061001633,0.005,63348.0,63343.0,0.4863143]
[1721061001865,0.005,63350.0,63343.0,0.4863143]
[1721061002079,0.4705,63357.0,63356.0,0.01]
[1721061002248,0.1,63357.0,63356.0,0.26424334]
[1721061002463,0.001,63357.0,63356.0,0.26424334]
[1721061002810,0.001,63357.0,63356.0,0.40724334]
[1721061002998,0.001,63357.0,63356.0,0.59924334]
[1721061003453,0.001,63357.0,63356.0,0.60924334]
[1721061003660,0.1,63362.0,63356.0,0.60924334]
[1721061003832,0.005,63361.0,63356.0,0.41724334]
[1721061004250,0.320659,63360.0,63356.0,0.41724334]
[1721061004454,0.005,63357.0,63356.0,0.27434334]
[1721061004655,0.2298,63357.0,63356.0,0.27434334]
[1721061004818,0.001,63357.0,63356.0,0.27034334]
[1721061005029,0.001,63357.0,63356.0,0.27534334]
[1721061005597,0.001,63357.0,63356.0,0.27034334]
[1721061005785,0.001,63357.0,63356.0,0.28034334]
[1721061007079,0.001,63357.0,63356.0,0.42334334]
[1721061007466,0.001,63357.0,63356.0,0.28034334]
[1721061009248,0.0664,63357.0,63356.0,0.28034334]
[1721061009400,0.229235,63357.0,63356.0,0.28034334]
[1721061009604,0.719406,63357.0,63356.0,0.0161]
[1721061009804,1.239177,63357.0,63356.0,0.0161]
[1721061010025,1.654848,63357.0,63356.0,0.0161]
[1721061010205,1.754848,63357.0,63356.0,0.0161]
[1721061010786,1.754848,63357.0,63342.0,0.000913]
[1721061010787,1.207352,63343.0,63342.0,0.000913]
[1721061010896,1.468152,63343.0,63342.0,0.000913]
[1721061011114,1.883893,63343.0,63342.0,0.000913]
[1721061011975,1.883243,63343.0,63342.0,0.000913]
[1721061012223,1.889243,63343.0,63342.0,0.000913]
[1721061012352,1.889243,63343.0,63342.0,0.001913]
[1721061012353,1.891243,63343.0,63342.0,0.001913]
[1721061012569,1.889243,63343.0,63342.0,0.000913]
[1721061012970,1.891243,63343.0,63342.0,0.000913]
[1721061013375,1.885243,63343.0,63342.0,0.000913]
[1721061013572,1.883243,63343.0,63342.0,0.000913]
[1721061013848,1.893243,63343.0,63342.0,0.001913]
[1721061014019,1.577502,63343.0,63342.0,0.001913]
[1721061014193,1.567502,63343.0,63342.0,0.000913]
[1721061014403,1.883243,63343.0,63342.0,0.000913]
[1721061014731,1.989243,63343.0,63342.0,0.001913]
[1721061014928,1.989143,63343.0,63342.0,0.001913]
[1721061015479,1.992143,63343.0,63342.0,0.001913]
[1721061016498,2.307884,63343.0,63342.0,0.001913]
[1721061017884,1.068252,63331.0,63320.0,0.00306353]
[1721061018068,0.20425,63321.0,63320.0,0.00306353]
[1721061018266,1.951925,63321.0,63320.0,0.00306353]
[1721061018577,1.168287,63320.0,63319.0,0.08105238]
[1721061018784,1.607142,63320.0,63319.0,0.08105238]
[1721061018975,1.594992,63320.0,63319.0,0.08105238]
[1721061019195,1.607142,63320.0,63319.0,0.08105238]
[1721061019838,1.607142,63320.0,63319.0,0.08205238]
[1721061019839,1.617142,63320.0,63319.0,0.08205238]
[1721061020393,1.607142,63320.0,63319.0,0.08105238]
[1721061020595,1.148075,63313.0,63312.0,0.08105238]
[1721061020802,1.916765,63313.0,63312.0,0.08105238]
[1721061021316,1.484335,63309.0,63307.0,0.000913]
[1721061021490,1.607335,63309.0,63307.0,0.000913]
[1721061022557,1.607235,63309.0,63307.0,0.000913]
[1721061022789,1.607235,63309.0,63308.0,0.004913]
[1721061023009,1.607235,63309.0,63308.0,0.000913]
[1721061023216,1.599335,63309.0,63308.0,0.000913]
[1721061023423,1.610235,63309.0,63308.0,0.000913]
[1721061023858,1.607235,63309.0,63308.0,0.000913]
[1721061024068,1.616235,63309.0,63308.0,0.001913]
[1721061024730,1.608335,63309.0,63308.0,0.001913]
[1721061024943,1.616235,63309.0,63308.0,0.001913]
[1721061025536,0.21205,63306.0,63305.0,0.08105238]
[1721061025739,1.205237,63306.0,63305.0,0.08105238]
[1721061026096,1.837087,63306.0,63305.0,0.08105238]
[1721061026705,1.836987,63306.0,63305.0,0.08105238]
[1721061026931,1.838987,63306.0,63305.0,0.08105238]
[1721061031052,1.838887,63306.0,63305.0,0.08105238]
[1721061031413,1.904487,63306.0,63305.0,0.08105238]
[1721061031617,2.220412,63306.0,63305.0,0.08105238]
[1721061031897,2.298612,63306.0,63305.0,0.08105238]
[1721061032741,2.310612,63306.0,63305.0,0.08205238]
[1721061032990,1.992687,63306.0,63305.0,0.08205238]
[1721061033189,0.858337,63306.0,63305.0,0.08105238]
[1721061033393,0.542312,63306.0,63305.0,0.08105238]
[1721061033595,0.556312,63306.0,63305.0,0.08215238]
[1721061033802,0.844237,63306.0,63305.0,0.08115238]
[1721061034308,0.858237,63306.0,63305.0,0.08115238]
[1721061034515,1.160162,63306.0,63305.0,0.08115238]
[1721061034710,0.1,63306.0,63305.0,0.08115238]
[1721061034915,0.00595,63306.0,63305.0,0.08115238]
[1721061035140,0.015,63306.0,63305.0,0.08215238]
[1721061035583,0.015,63306.0,63305.0,0.14851591]
[1721061035789,1e-08,63306.0,63305.0,0.14845238]
[1721061036000,1e-08,63306.0,63305.0,0.67280238]
[1721061036643,0.00100001,63306.0,63305.0,0.67280238]
[1721061036846,0.00100001,63306.0,63305.0,0.72980238]
[1721061036847,0.001,63306.0,63305.0,0.72980238]
[1721061037052,0.00395,63323.0,63321.0,0.143]
[1721061037261,0.00395,63323.0,63322.0,0.08105238]
[1721061037500,0.00395,63327.0,63322.0,0.08105238]
[1721061037881,0.1665,63332.0,63322.0,0.08105238]
[1721061038089,0.17045,63333.0,63331.0,0.08105238]
[1721061038442,0.161848,63332.0,63331.0,0.08105238]
[1721061039279,0.00395,63332.0,63331.0,0.08105238]
[1721061039455,0.1665,63335.0,63331.0,0.08505238]
[1721061039658,0.1665,63335.0,63331.0,0.08105238]
[1721061039836,0.2298,63337.0,63331.0,0.08105238]
[1721061040037,0.1,63344.0,63332.0,0.286]
[1721061040038,0.1,63343.0,63332.0,0.286]
[1721061040285,0.00395,63341.0,63339.0,0.08105238]
[1721061040635,0.2298,63344.0,63339.0,0.08105238]
[1721061040852,0.324344,63354.0,63340.0,0.143]
[1721061041056,0.00395,63349.0,63347.0,0.08105238]
[1721061041274,0.157846,63353.0,63347.0,0.08105238]
[1721061041275,0.1,63352.0,63347.0,0.08105238]
[1721061041749,0.157846,63353.0,63347.0,0.08105238]
[1721061041884,0.00395,63349.0,63347.0,0.08105238]
[1721061042086,0.1665,63354.0,63347.0,0.08105238]
[1721061042328,0.11652247,63361.0,63347.0,0.08105238]
[1721061042329,0.01652247,63361.0,63349.0,0.0648]
[1721061042687,0.01652247,63361.0,63357.0,0.08105238]
[1721061043975,0.00395,63360.0,63354.0,0.143]
[1721061044178,0.00395,63362.0,63354.0,0.143]
[1721061044378,0.003,63361.0,63354.0,0.143]
[1721061044611,0.00395,63356.0,63353.0,0.26424334]
[1721061045028,0.00395,63355.0,63353.0,0.26424334]
[1721061045757,0.00395,63355.0,63353.0,0.27024334]
[1721061045956,0.00395,63355.0,63353.0,0.26424334]
[1721061046356,0.00395,63355.0,63353.0,0.27124334]
[1721061046577,0.00395,63355.0,63353.0,0.27224334]
[1721061046782,0.00395,63355.0,63353.0,0.26524334]
[1721061047240,0.00395,63355.0,63353.0,0.26424334]
[1721061047393,0.00395,63352.0,63349.0,0.0648]
[1721061047566,0.00395,63353.0,63349.0,0.0648]
[1721061047765,0.00395,63354.0,63349.0,0.0648]
[1721061047965,0.00395,63352.0,63349.0,0.0648]
[1721061048683,0.00385,63352.0,63349.0,0.0648]
[1721061048878,0.00385,63353.0,63349.0,0.0648]
[1721061049105,0.57351,63357.0,63349.0,0.0648]
[1721061049106,0.00385,63355.0,63349.0,0.0648]
[1721061049421,0.1,63357.0,63354.0,0.08105238]
[1721061049984,0.00385,63354.0,63350.0,0.26424334]
[1721061050474,0.00385,63355.0,63350.0,0.26424334]
[1721061050679,0.00385,63354.0,63350.0,0.26424334]
[1721061050875,0.00385,63355.0,63353.0,0.0001]
[1721061051366,0.00385,63354.0,63353.0,0.0001]
[1721061052297,0.00385,63354.0,63353.0,0.0041]
[1721061052515,0.161693,63354.0,63353.0,0.0001]
[1721061052699,0.261693,63354.0,63353.0,0.0001]
[1721061052967,0.261693,63354.0,63353.0,0.0061]
[1721061053165,0.257843,63354.0,63353.0,0.0011]
[1721061053350,0.261693,63354.0,63353.0,0.0011]
[1721061053525,0.261693,63354.0,63353.0,0.0001]
[1721061053723,0.577379,63354.0,63353.0,0.0001]
[1721061053925,0.578379,63354.0,63353.0,0.0001]
[1721061054551,0.578379,63354.0,63353.0,0.0021]
[1721061055171,0.258843,63354.0,63353.0,0.0021]
[1721061055854,0.262693,63354.0,63353.0,0.0021]
[1721061056915,0.101,63354.0,63353.0,0.0021]
[1721061057162,0.001,63354.0,63353.0,0.3372]
[1721061057405,0.00083,63361.0,63353.0,0.3372]
[1721061057612,0.00083,63361.0,63359.0,0.1419]
[1721061058016,0.158657,63361.0,63359.0,0.1419]
[1721061058217,0.1,63360.0,63359.0,0.1419]
[1721061058415,0.00083,63361.0,63359.0,0.1419]
[1721061058679,0.260656,63361.0,63359.0,0.1419]
[1721061058852,0.00283,63361.0,63359.0,0.1419]
[1721061059257,0.00883,63361.0,63359.0,0.1419]
[1721061059499,0.00883,63361.0,63359.0,0.1429]
[1721061059710,0.00283,63361.0,63359.0,0.1429]
[1721061060107,0.00385,63360.0,63359.0,0.1429]
[1721061060639,0.477334,63360.0,63359.0,0.001]
[1721061060869,0.577334,63360.0,63359.0,0.001]
[1721061061072,1.08249,63360.0,63359.0,0.001]
[1721061061283,1.66816391,63360.0,63359.0,0.001]
[1721061061457,0.477379,63354.0,63353.0,0.0001]
[1721061061667,1.122865,63354.0,63353.0,0.0001]
[1721061061864,1.153765,63354.0,63353.0,0.0001]
[1721061062102,1.835951,63354.0,63353.0,0.0001]
[1721061062301,1.835951,63354.0,63311.0,0.1]
[1721061062302,0.157881,63339.0,63337.0,0.26424334]
[1721061062508,0.00375,63340.0,63337.0,0.26424334]
[1721061062727,0.1,63340.0,63337.0,0.26424334]
[1721061062926,0.00375,63338.0,63337.0,0.26424334]
[1721061064020,0.1,63340.0,63337.0,0.26624334]
[1721061064308,0.1,63340.0,63338.0,0.08105238]
[1721061064454,0.10375,63340.0,63338.0,0.08105238]
[1721061064658,0.00375,63339.0,63338.0,0.08105238]
[1721061064899,0.00365,63339.0,63338.0,0.08105238]
[1721061066507,0.00365,63339.0,63338.0,0.08805238]
[1721061066915,0.00365,63339.0,63338.0,0.007]
[1721061066916,1.133452,63339.0,63338.0,0.007]
[1721061067116,1.133452,63339.0,63322.0,0.0832]
[1721061067117,1.572213,63339.0,63322.0,0.0832]
[1721061067315,0.00365,63323.0,63322.0,0.0832]
[1721061067774,0.161586,63317.0,63315.0,0.08105238]
[1721061067902,0.2665,63323.0,63315.0,0.08105238]
[1721061067903,0.00365,63316.0,63315.0,0.08105238]
[1721061068119,0.00365,63317.0,63315.0,0.08105238]
[1721061069005,0.1665,63318.0,63316.0,0.08105238]
[1721061069308,0.157837,63317.0,63316.0,0.08105238]
[1721061069596,0.500357,63317.0,63316.0,0.08105238]
[1721061070220,0.180837,63317.0,63316.0,0.08105238]
[1721061070419,0.003,63318.0,63316.0,0.08205238]
[1721061070631,0.161585,63317.0,63316.0,0.08205238]
[1721061071559,0.261485,63317.0,63316.0,0.08105238]
[1721061072084,0.261485,63317.0,63316.0,0.08405238]
[1721061072294,1.082725,63317.0,63316.0,0.003]
[1721061072658,1.510495,63317.0,63316.0,0.003]
[1721061072857,1.510495,63317.0,63305.0,0.08196538]
[1721061072858,0.161608,63308.0,63305.0,0.08196538]
[1721061073094,0.482403,63311.0,63305.0,0.08196538]
[1721061073095,0.00365,63310.0,63305.0,0.08196538]
[1721061073260,0.023,63309.0,63305.0,0.08196538]
[1721061073851,0.1,63310.0,63305.0,0.08196538]
[1721061074070,0.1,63310.0,63308.0,0.143]
[1721061074449,0.1,63316.0,63315.0,0.143]
[1721061074652,0.003,63317.0,63315.0,0.143]
[1721061074835,0.003,63317.0,63316.0,0.143]
[1721061075043,0.157928,63320.0,63316.0,0.143]
[1721061075250,0.1,63319.0,63316.0,0.143]
[1721061075451,0.1,63322.0,63316.0,0.143]
[1721061075688,0.00365,63320.0,63316.0,0.143]
[1721061075886,0.10365,63320.0,63316.0,0.143]
[1721061076151,0.1,63320.0,63316.0,0.143]
[1721061076518,0.009,63319.0,63316.0,0.143]
[1721061077127,0.0089,63319.0,63316.0,0.143]
[1721061077840,0.0089,63319.0,63318.0,0.1921]
[1721061077841,0.003,63319.0,63318.0,0.1921]
[1721061078059,0.003,63319.0,63318.0,0.0626]
[1721061079308,0.003,63319.0,63318.0,0.2547]
[1721061079522,0.10365,63328.0,63323.0,0.143]
[1721061079731,0.00365,63328.0,63327.0,0.08105238]
[1721061080643,0.10365,63328.0,63327.0,0.08105238]
[1721061080814,0.261558,63328.0,63327.0,0.08105238]
[1721061081276,0.261558,63328.0,63323.0,0.41124334]
[1721061081527,0.704704,63324.0,63323.0,0.004]
[1721061081727,1.444276,63324.0,63323.0,0.004]
[1721061081929,1.567276,63324.0,63323.0,0.004]
[1721061082056,0.477455,63317.0,63316.0,0.26525634]
[1721061082239,0.577455,63317.0,63316.0,0.001013]
[1721061082452,0.261585,63317.0,63316.0,0.001013]
[1721061082681,0.1,63317.0,63316.0,0.001013]
[1721061083094,0.1,63317.0,63316.0,0.26525634]
[1721061083320,0.1,63317.0,63316.0,0.27425634]
[1721061083941,0.1,63319.0,63316.0,0.27425634]
[1721061084147,0.023,63318.0,63316.0,0.27425634]
[1721061084569,0.1,63319.0,63316.0,0.41725634]
[1721061084727,0.00365,63321.0,63316.0,0.41725634]
[1721061084923,0.10365,63321.0,63320.0,0.08105238]
[1721061085551,0.257925,63321.0,63320.0,0.08105238]
[1721061085746,0.261575,63321.0,63320.0,0.08105238]
[1721061086142,0.261575,63321.0,63320.0,0.08505238]
[1721061086360,0.10365,63321.0,63320.0,0.08505238]
[1721061086571,0.1,63321.0,63320.0,0.08505238]
[1721061087154,0.261575,63321.0,63320.0,0.08505238]
[1721061087576,0.261575,63321.0,63320.0,0.08605238]
[1721061088163,0.257925,63321.0,63320.0,0.08605238]
[1721061088563,0.257925,63321.0,63320.0,0.005]
[1721061088564,1.082875,63321.0,63320.0,0.005]
[1721061090418,1.498725,63321.0,63320.0,0.005]
[1721061090646,1.506625,63321.0,63320.0,0.005]
[1721061091680,1.753525,63321.0,63320.0,0.005]
[1721061092228,2.569375,63321.0,63320.0,0.005]
[1721061092433,1.383695,63317.0,63316.0,0.001013]
[1721061092791,1.636495,63317.0,63316.0,0.001013]
[1721061092970,1.736495,63317.0,63316.0,0.001013]
[1721061093325,1.628595,63317.0,63316.0,0.001013]
[1721061093570,1.312725,63317.0,63316.0,0.001013]
[1721061093775,0.996855,63317.0,63316.0,0.001013]
[1721061094328,1.312725,63317.0,63316.0,0.001013]
[1721061095136,0.454185,63317.0,63316.0,0.002013]
[1721061095340,0.770055,63317.0,63316.0,0.002013]
[1721061095540,0.610455,63317.0,63316.0,0.002013]
[1721061095741,0.926325,63317.0,63316.0,0.002013]
[1721061095942,0.923325,63317.0,63316.0,0.001013]
[1721061096142,1.089925,63317.0,63316.0,0.001013]
[1721061096390,1.092925,63317.0,63316.0,0.001013]
[1721061096998,1.085925,63317.0,63316.0,0.001013]
[1721061097341,1.091925,63317.0,63316.0,0.001013]
[1721061097626,1.329625,63317.0,63316.0,0.001013]
[1721061097798,1.891695,63317.0,63316.0,0.001013]
[1721061097938,1.894695,63317.0,63316.0,0.001013]
[1721061098372,1.986795,63317.0,63316.0,0.001013]
[1721061098784,1.994695,63317.0,63316.0,0.001013]
[1721061099026,1.740595,63317.0,63316.0,0.001013]
[1721061099461,1.840595,63317.0,63316.0,0.001013]
[1721061099785,1.740595,63317.0,63316.0,0.001013]
[1721061099997,1.840595,63317.0,63316.0,0.001013]
[1721061100594,1.740595,63317.0,63316.0,0.001013]
[1721061100807,1.848495,63317.0,63316.0,0.001013]
[1721061103236,2.164365,63317.0,63316.0,0.001013]
[1721061105190,2.064365,63317.0,63316.0,0.001013]
[1721061105396,2.164365,63317.0,63316.0,0.001013]
[1721061106217,2.401095,63317.0,63316.0,0.001013]
[1721061106377,2.401095,63317.0,63301.0,0.4863143]
[1721061106378,1.383887,63306.0,63301.0,0.4863143]
[1721061106580,1.736687,63306.0,63301.0,0.4863143]
[1721061106774,1.736687,63306.0,63302.0,0.00306353]
[1721061107113,1.728787,63306.0,63302.0,0.00306353]
[1721061107316,1.736687,63306.0,63300.0,0.009163]
[1721061107779,1.728787,63306.0,63300.0,0.009163]
[1721061108197,1.736687,63306.0,63300.0,0.009163]
[1721061108575,1.804787,63306.0,63300.0,0.009163]
[1721061108982,1.882387,63306.0,63300.0,0.009163]
[1721061109383,1.889387,63306.0,63300.0,0.009163]
[1721061109588,1.989387,63306.0,63300.0,0.009163]
[1721061109945,1.989387,63306.0,63305.0,0.08206538]
[1721061110076,2.08819071,63306.0,63305.0,0.08206538]
[1721061110280,1.989387,63306.0,63305.0,0.08206538]
[1721061111476,1.839787,63306.0,63305.0,0.08206538]
[1721061111676,1.423862,63306.0,63305.0,0.08206538]
[1721061112260,1.523862,63306.0,63305.0,0.08206538]
[1721061112455,1.423862,63306.0,63305.0,0.08206538]
[1721061112666,0.688362,63306.0,63305.0,0.08206538]
[1721061113007,0.984937,63306.0,63305.0,0.08206538]
[1721061113449,0.3408,63306.0,63305.0,0.08206538]
[1721061113820,0.34445,63306.0,63305.0,0.08206538]
[1721061114183,0.33745,63306.0,63305.0,0.08206538]
[1721061114384,0.495412,63306.0,63305.0,0.08206538]
[1721061114563,0.498412,63306.0,63305.0,0.08206538]
[1721061114981,0.525412,63306.0,63305.0,0.08206538]
[1721061115541,0.36745,63306.0,63305.0,0.08206538]
[1721061115750,0.3638,63306.0,63305.0,0.08206538]
[1721061115940,0.3598,63306.0,63305.0,0.08206538]
[1721061116240,0.1,63306.0,63305.0,0.08306538]
[1721061116440,0.004,63306.0,63305.0,0.08612891]
[1721061116859,0.261603,63310.0,63305.0,0.08612891]
[1721061117036,0.023,63309.0,63305.0,0.08612891]
[1721061117268,0.003,63306.0,63305.0,0.08612891]
[1721061117440,0.003,63306.0,63305.0,0.08306538]
[1721061117844,0.023,63309.0,63305.0,0.08612891]
[1721061118098,0.023,63309.0,63306.0,0.08105238]
[1721061118099,0.27025,63308.0,63306.0,0.08105238]
[1721061118292,0.89693,63307.0,63306.0,0.08105238]
[1721061118495,1.31285,63307.0,63306.0,0.08105238]
[1721061118725,0.51441,63307.0,63306.0,0.08105238]
[1721061118944,0.82668,63307.0,63306.0,0.08105238]
[1721061119145,0.83033,63307.0,63306.0,0.08105238]
[1721061119490,0.82668,63307.0,63306.0,0.08105238]
[1721061119848,0.3528,63307.0,63306.0,0.08105238]
[1721061120048,0.3568,63307.0,63306.0,0.08105238]
[1721061122306,0.3568,63307.0,63306.0,0.44920238]
[1721061122307,0.104,63307.0,63306.0,0.44920238]
[1721061122551,0.004,63307.0,63306.0,0.52980238]
[1721061123261,0.293106,63320.0,63309.0,0.1478]
[1721061123492,0.451033,63320.0,63319.0,0.08105238]
[1721061123758,0.454683,63320.0,63319.0,0.08105238]
[1721061124229,0.454683,63320.0,63309.0,0.1478]
[1721061124230,0.161602,63310.0,63309.0,0.1478]
[1721061124491,0.184602,63310.0,63309.0,0.1478]
[1721061124709,0.284602,63310.0,63309.0,0.1478]
[1721061124938,0.600507,63310.0,63309.0,0.1478]
[1721061125403,0.600507,63310.0,63306.0,0.08105238]
[1721061125404,0.47753,63307.0,63306.0,0.09105238]
[1721061125666,0.60053,63307.0,63306.0,0.08105238]
[1721061125866,0.28461,63307.0,63306.0,0.08105238]
[1721061126040,0.60053,63307.0,63306.0,0.08105238]
[1721061126596,0.60153,63307.0,63306.0,0.08205238]
[1721061127240,0.91745,63307.0,63306.0,0.08205238]
[1721061127458,0.91645,63307.0,63306.0,0.08105238]
[1721061127654,0.91645,63307.0,63306.0,0.09105238]
[1721061127966,0.91645,63307.0,63306.0,0.08105238]
[1721061128317,0.91645,63307.0,63306.0,0.08705238]
[1721061128872,0.91645,63307.0,63306.0,0.08805238]
[1721061129222,0.59688,63307.0,63306.0,0.08805238]
[1721061129849,0.28096,63307.0,63306.0,0.42315238]
[1721061130082,0.28096,63307.0,63306.0,0.23105238]
[1721061130284,0.28096,63307.0,63306.0,0.08805238]
[1721061131810,0.123,63307.0,63306.0,0.23105238]
[1721061132219,0.18096,63307.0,63306.0,0.23105238]
[1721061132413,0.28096,63307.0,63306.0,0.23105238]
[1721061133246,0.28461,63307.0,63306.0,0.23105238]
[1721061133458,0.28096,63307.0,63306.0,0.23105238]
[1721061133980,0.28096,63307.0,63306.0,0.08805238]
[1721061133981,0.60053,63307.0,63306.0,0.08805238]
[1721061134180,1.23237,63307.0,63306.0,0.007]
[1721061134325,1.23237,63307.0,63306.0,0.006]
[1721061134517,0.793462,63306.0,63305.0,0.001013]
[1721061134713,1.146262,63306.0,63305.0,0.001013]
[1721061135814,1.320762,63306.0,63305.0,0.001013]
[1721061136022,1.736687,63306.0,63305.0,0.001013]
[1721061136452,1.743687,63306.0,63305.0,0.001013]
[1721061136856,1.728787,63306.0,63305.0,0.001013]
[1721061137288,1.629787,63306.0,63305.0,0.001013]
[1721061137658,1.633787,63306.0,63305.0,0.001013]
[1721061138111,1.317862,63306.0,63305.0,0.001013]
[1721061138316,1.810287,63306.0,63305.0,0.001013]
[1721061138456,1.729787,63306.0,63305.0,0.001013]
[1721061138649,1.728787,63306.0,63305.0,0.003013]
[1721061139272,1.628787,63306.0,63305.0,0.003013]